bitfinex-derivatives/quotes_SOLF0:USTF0_20250416
["timestamp","ask_amount","ask_price","bid_price","bid_amount"]
[1744813696042,18.87973466,126.58,126.51,9.1359869]
[1744813696546,7.9017,126.57,126.53,7.9035]
[1744813697043,12.1276,126.59,126.51,9.1359869]
[1744813697244,0.05074788,126.56,126.54,0.06059316]
[1744813697439,12.12961745,126.56,126.54,0.06059316]
[1744813698147,0.05074788,126.56,126.54,0.06059316]
[1744813699149,0.05074788,126.56,126.54,7.96369316]
[1744813700346,0.05074788,126.56,126.54,0.06059316]
[1744813700545,0.05074788,126.56,126.54,12.13946273]
[1744813700746,0.05074788,126.56,126.55,19.98146957]
[1744813702743,0.05074788,126.56,126.54,0.06059316]
[1744813705048,0.05074788,126.56,126.54,7.96349316]
[1744813705853,0.05074788,126.56,126.55,7.9026]
[1744813707052,0.05074788,126.56,126.54,0.06059316]
[1744813707657,0.05074788,126.56,126.55,7.9026]
[1744813708563,0.05074788,126.56,126.55,26.77776368]
[1744813709161,0.05074788,126.56,126.55,7.9026]
[1744813709960,0.05074788,126.56,126.54,7.96369316]
[1744813710262,0.05074788,126.56,126.54,0.06059316]
[1744813711062,0.05074788,126.56,126.55,7.9026]
[1744813713369,0.05074788,126.56,126.54,7.96349316]
[1744813713974,0.05074788,126.56,126.55,7.9026]
[1744813714167,0.05074788,126.56,126.54,0.06059316]
[1744813714366,7.95284788,126.56,126.54,0.06059316]
[1744813714568,0.05074788,126.56,126.54,0.06059316]
[1744813715070,0.05074788,126.56,126.54,7.96349316]
[1744813716372,7.95274788,126.56,126.54,7.96349316]
[1744813716673,7.95274788,126.56,126.54,0.06059316]
[1744813717777,0.05074788,126.56,126.54,0.06059316]
[1744813718174,0.05074788,126.56,126.54,7.96379316]
[1744813718874,0.05074788,126.56,126.54,0.06059316]
[1744813719073,7.9026,126.55,126.54,0.06059316]
[1744813719674,7.95294788,126.56,126.54,0.06059316]
[1744813720274,0.05074788,126.56,126.54,0.06059316]
[1744813720670,0.05074788,126.56,126.54,7.96329316]
[1744813721374,0.05074788,126.56,126.55,7.9026]
[1744813722177,0.05074788,126.56,126.54,0.06059316]
[1744813722976,0.05074788,126.56,126.54,7.96379316]
[1744813723377,0.05074788,126.56,126.54,0.06059316]
[1744813723577,7.95274788,126.56,126.54,0.06059316]
[1744813724177,0.05074788,126.56,126.54,7.96379316]
[1744813724479,0.05074788,126.56,126.54,0.06059316]
[1744813724878,51.44591156,126.56,126.51,9.1359869]
[1744813725277,7.904,126.53,126.51,9.1359869]
[1744813725476,12.08625575,126.53,126.51,9.1359869]
[1744813725674,19.99075575,126.52,126.51,9.1359869]
[1744813726377,7.9045,126.52,126.5,0.05454752]
[1744813726880,0.05656351,126.53,126.5,20.04620327]
[1744813727181,0.05656351,126.53,126.5,7.95994752]
[1744813727479,0.05656351,126.53,126.5,0.05454752]
[1744813727980,0.05656351,126.53,126.51,7.9048]
[1744813728378,0.05656351,126.53,126.5,0.05454752]
[1744813728578,0.05656351,126.53,126.5,7.95974752]
[1744813728781,0.05656351,126.53,126.5,0.05454752]
[1744813729481,0.05656351,126.53,126.5,7.95994752]
[1744813730383,7.96046351,126.53,126.5,0.05454752]
[1744813730884,0.05656351,126.53,126.5,7.96024752]
[1744813733177,0.05656351,126.53,126.5,0.05454752]
[1744813733583,21.04634979,126.58,126.51,18.88574979]
[1744813733584,2.1606,126.58,126.51,18.88574979]
[1744813733779,10.0616,126.58,126.51,18.88574979]
[1744813733983,18.88574979,126.57,126.49,18.88574979]
[1744813734187,23.06694979,126.57,126.49,18.88574979]
[1744813734481,23.06694979,126.57,126.52,7.904]
[1744813734687,0.05114462,126.54,126.52,7.96279372]
[1744813734887,0.05114462,126.54,126.52,0.05879372]
[1744813735090,0.05114462,126.54,126.53,7.9038]
[1744813736290,0.05114462,126.54,126.52,7.96289372]
[1744813736483,0.05114462,126.54,126.52,0.05879372]
[1744813736889,0.05114462,126.54,126.53,7.9038]
[1744813740798,18.88574979,126.61,126.52,51.18454351]
[1744813740997,7.8998,126.6,126.52,51.12574979]
[1744813741303,7.8998,126.6,126.57,7.9013]
[1744813741597,7.8998,126.6,126.52,51.12574979]
[1744813741798,0.0505386,126.57,126.56,7.9017]
[1744813741992,7.9001,126.59,126.56,7.9017]
[1744813742196,18.88574979,126.57,126.55,0.05348031]
[1744813743089,7.902,126.56,126.55,0.05348031]
[1744813743494,18.88574979,126.57,126.49,413.10574979]
[1744813743695,7.9029,126.55,126.52,7.9043]
[1744813743900,18.88574979,126.57,126.49,394.22]
[1744813744199,7.9037,126.54,126.5,7.9053]
[1744813744594,7.9037,126.54,126.49,394.22]
[1744813744595,0.05578031,126.53,126.51,0.05967209]
[1744813744795,7.95998031,126.53,126.51,0.05967209]
[1744813745196,18.9415301,126.53,126.51,0.05967209]
[1744813745597,0.05578031,126.53,126.51,0.05967209]
[1744813746595,0.05578031,126.53,126.52,7.9045]
[1744813752304,0.05578031,126.53,126.51,7.96437209]
[1744813754304,0.05578031,126.53,126.52,7.9045]
[1744813755404,0.05578031,126.53,126.51,7.96437209]
[1744813755701,0.05578031,126.53,126.51,0.05967209]
[1744813756000,0.05578031,126.53,126.51,7.96467209]
[1744813756304,0.05578031,126.53,126.51,0.05967209]
[1744813756505,0.05578031,126.53,126.52,7.9045]
[1744813756900,0.05578031,126.53,126.51,0.05967209]
[1744813757101,7.9045,126.52,126.51,0.05967209]
[1744813759300,6.49318031,126.53,126.51,0.05967209]
[1744813759504,0.05578031,126.53,126.51,0.05967209]
[1744813760910,0.05578031,126.53,126.51,7.96467209]
[1744813763005,0.05578031,126.53,126.51,0.05967209]
[1744813763812,0.05578031,126.53,126.52,7.9045]
[1744813770118,32.06,126.6,126.51,51.00542188]
[1744813770317,32.06,126.6,126.54,18.88574979]
[1744813770520,7.9004,126.59,126.56,7.9017]
[1744813770819,32.06,126.6,126.54,18.88574979]
[1744813771118,0.05313482,126.58,126.56,0.05325588]
[1744813771509,0.05313482,126.58,126.56,18.93900567]
[1744813771915,0.05313482,126.58,126.57,7.9009]
[1744813774927,12.116,126.64,126.61,7.8984]
[1744813775430,44.54,126.65,126.58,18.88574979]
[1744813775931,0.05319466,126.63,126.62,7.8977]
[1744813776333,12.5,126.65,126.64,7.897]
[1744813777129,32.04,126.7,126.64,18.88574979]
[1744813777336,2.1284,126.76,126.68,18.88574979]
[1744813777530,2.1284,126.76,126.7,18.88574979]
[1744813777729,2.1284,126.76,126.72,7.892]
[1744813777730,0.05169293,126.73,126.72,7.892]
[1744813777929,0.05169293,126.73,126.72,26.77774979]
[1744813778537,36.2898,126.82,126.75,18.88574979]
[1744813778739,4.2498,126.82,126.75,18.88574979]
[1744813779033,32.04,126.81,126.76,7.8894]
[1744813779234,7.8854,126.83,126.77,18.88574979]
[1744813779437,18.88574979,126.83,126.75,26.77554979]
[1744813779635,0.05764472,126.81,126.79,0.05207913]
[1744813779935,32.04,126.8,126.74,7.8906]
[1744813780136,32.04,126.8,126.73,18.88574979]
[1744813780833,7.8885,126.78,126.71,18.88574979]
[1744813781036,0.05015663,126.76,126.73,0.05327871]
[1744813781234,32.07015663,126.76,126.73,0.05327871]
[1744813781837,39.96005663,126.76,126.73,0.05327871]
[1744813782834,7.8901,126.75,126.73,0.05327871]
[1744813783133,32.07015663,126.76,126.69,380.88574979]
[1744813783338,2.071,126.74,126.69,362.0]
[1744813783935,2.071,126.74,126.69,369.8934]
[1744813784241,0.05172788,126.73,126.7,0.0558283]
[1744813786140,7.94312788,126.73,126.7,0.0558283]
[1744813787435,32.02,126.72,126.64,30.12406667]
[1744813787835,7.8936,126.7,126.65,7.896]
[1744813788541,7.8939,126.69,126.62,30.12406667]
[1744813788741,32.02,126.68,126.66,0.05195308]
[1744813789146,39.9148,126.68,126.66,0.05195308]
[1744813789348,32.02,126.68,126.66,0.05195308]
[1744813791453,0.05857286,126.69,126.66,0.05195308]
[1744813791749,0.05857286,126.69,126.67,7.8947]
[1744813792746,7.95247286,126.69,126.66,7.94735308]
[1744813793453,0.05857286,126.69,126.66,7.94735308]
[1744813794047,0.05857286,126.69,126.66,0.05195308]
[1744813794852,32.0,126.68,126.6,362.0]
[1744813795055,2.0922,126.67,126.6,362.0]
[1744813795352,7.8969,126.65,126.6,369.8991]
[1744813795552,32.0,126.64,126.6,362.0]
[1744813796050,7.95219201,126.63,126.61,0.05217288]
[1744813797149,0.05429201,126.63,126.61,0.05217288]
[1744813797350,0.05429201,126.63,126.54,39.26005357]
[1744813797551,2.1722,126.63,126.54,39.26005357]
[1744813797854,2.1722,126.63,126.58,7.9007]
[1744813798049,2.1722,126.63,126.54,39.26005357]
[1744813798254,2.1722,126.63,126.56,30.12406667]
[1744813798555,0.0590148,126.6,126.57,0.05517361]
[1744813799256,32.0,126.64,126.58,30.12406667]
[1744813799552,32.0,126.64,126.62,7.8979]
[1744813800353,32.05851734,126.64,126.62,0.05603617]
[1744813800857,0.05851734,126.64,126.63,7.8976]
[1744813801056,2.1722,126.7,126.62,30.18010284]
[1744813801256,2.1722,126.7,126.65,30.12406667]
[1744813801456,2.1722,126.7,126.68,7.8944]
[1744813801647,2.1722,126.7,126.65,30.12406667]
[1744813801847,34.1294,126.72,126.65,30.12406667]
[1744813802047,0.05537535,126.7,126.67,30.18491935]
[1744813802256,0.05537535,126.7,126.67,0.06085268]
[1744813802759,7.94897535,126.7,126.67,0.06085268]
[1744813802957,0.05537535,126.7,126.67,0.06085268]
[1744813803157,39.9143,126.69,126.63,30.12406667]
[1744813803359,34.22,126.69,126.62,32.02]
[1744813803557,34.22,126.69,126.64,7.8965]
[1744813803755,34.22,126.69,126.62,32.02]
[1744813803954,2.1094,126.72,126.65,30.12406667]
[1744813804155,2.1094,126.72,126.68,7.8942]
[1744813804355,0.05513737,126.7,126.68,7.8942]
[1744813804657,0.05513737,126.7,126.67,0.05313964]
[1744813804858,0.05513737,126.7,126.69,7.8939]
[1744813809160,0.05513737,126.7,126.67,0.05313964]
[1744813809357,32.02,126.69,126.61,392.12406667]
[1744813809552,4.3108,126.68,126.63,7.8973]
[1744813809757,4.3108,126.68,126.61,362.0]
[1744813810159,4.3108,126.68,126.65,7.896]
[1744813810661,4.36532488,126.68,126.66,7.8953]
[1744813810960,4.36532488,126.68,126.65,0.0578932]
[1744813811164,0.05452488,126.68,126.65,0.0578932]
[1744813811462,0.05452488,126.68,126.67,7.8951]
[1744813812761,0.05452488,126.68,126.66,7.8955]
[1744813813263,0.05452488,126.68,126.65,7.9539932]
[1744813813663,0.05452488,126.68,126.65,0.0578932]
[1744813813852,0.05452488,126.68,126.65,30.18195987]
[1744813814053,0.05452488,126.68,126.67,7.8951]
[1744813815460,598.64406667,126.79,126.71,7.8926]
[1744813815654,4.292,126.76,126.67,30.12406667]
[1744813815969,7.8904,126.75,126.72,7.892]
[1744813816264,4.292,126.76,126.69,30.12406667]
[1744813816461,4.292,126.76,126.74,7.8904]
[1744813816763,4.292,126.76,126.71,30.12406667]
[1744813816764,4.35061876,126.76,126.71,30.12406667]
[1744813816964,0.05861876,126.76,126.74,0.05132076]
[1744813817166,0.05861876,126.76,126.75,7.8901]
[1744813818565,0.05861876,126.76,126.75,38.01416667]
[1744813820564,39.886,126.82,126.79,7.8872]
[1744813820762,7.886,126.82,126.75,30.12406667]
[1744813821069,7.886,126.82,126.79,7.8875]
[1744813821369,6.3943,126.84,126.79,7.8875]
[1744813821563,6.3943,126.84,126.74,394.0]
[1744813821763,6.3943,126.84,126.8,0.05893382]
[1744813822166,0.05889553,126.83,126.8,0.05893382]
[1744813822762,7.8873,126.8,126.76,7.8892]
[1744813823069,31.98,126.8,126.73,36.54394761]
[1744813823259,30.12406667,126.79,126.73,36.54394761]
[1744813823566,30.12406667,126.77,126.73,29.88914761]
[1744813823763,34.0993,126.76,126.73,29.88914761]
[1744813823962,7.8905,126.75,126.74,0.05803673]
[1744813824161,34.15729643,126.76,126.73,29.88914761]
[1744813824365,30.12406667,126.75,126.73,6.59634761]
[1744813824665,7.8919,126.73,126.69,7.8934]
[1744813825065,7.8919,126.73,126.7,7.8931]
[1744813825265,0.05176969,126.71,126.68,0.05406833]
[1744813825668,30.17583636,126.71,126.68,0.05406833]
[1744813826571,7.8936,126.7,126.68,0.05406833]
[1744813826764,0.05176969,126.71,126.68,0.05406833]
[1744813827168,31.98,126.7,126.68,0.05406833]
[1744813827365,31.98,126.7,126.66,27.25957323]
[1744813827672,7.8951,126.67,126.63,7.8971]
[1744813828067,31.98,126.7,126.61,4.7343]
[1744813828268,31.98,126.7,126.63,48.99513471]
[1744813828467,0.05655496,126.67,126.63,48.99513471]
[1744813828772,0.05655496,126.67,126.65,7.8961]
[1744813829171,0.05655496,126.67,126.63,48.99513471]
[1744813829367,0.05655496,126.67,126.64,7.8967]
[1744813829767,0.05655496,126.67,126.61,53.72943471]
[1744813829969,0.05655496,126.67,126.65,7.8958]
[1744813830170,0.05655496,126.67,126.61,53.72943471]
[1744813830673,0.05655496,126.67,126.66,7.8957]
[1744813832172,31.98,126.73,126.65,80.97513471]
[1744813832872,7.8923,126.72,126.68,7.8942]
[1744813833074,7.94897341,126.72,126.69,0.0594655]
[1744813833573,7.893,126.71,126.69,0.0594655]
[1744813834068,7.8932,126.7,126.69,0.0594655]
[1744813834471,0.05667341,126.72,126.69,0.0594655]
[1744813834670,7.8929,126.71,126.69,0.0594655]
[1744813835171,0.05667341,126.72,126.7,7.8929]
[1744813836371,0.05667341,126.72,126.71,7.8926]
[1744813836873,0.05667341,126.72,126.69,32.0594655]
[1744813837167,32.05667341,126.72,126.69,0.0594655]
[1744813837378,7.8926,126.71,126.69,0.0594655]
[1744813837872,39.94897341,126.72,126.69,0.0594655]
[1744813838072,32.05667341,126.72,126.69,0.0594655]
[1744813838470,39.94897341,126.72,126.69,0.0594655]
[1744813838875,7.8929,126.71,126.69,0.0594655]
[1744813839075,81.05180812,126.72,126.69,0.0594655]
[1744813839374,7.893,126.71,126.69,0.0594655]
[1744813839574,32.05667341,126.72,126.69,0.0594655]
[1744813840176,7.893,126.71,126.69,0.0594655]
[1744813841172,32.05667341,126.72,126.69,0.0594655]
[1744813841377,32.05667341,126.72,126.7,7.8928]
[1744813841874,0.05667341,126.72,126.71,7.8926]
[1744813844183,51.10123471,126.8,126.73,48.99513471]
[1744813844184,7.8872,126.8,126.73,48.99513471]
[1744813844482,31.98,126.81,126.75,48.99513471]
[1744813844682,31.98,126.81,126.79,7.8874]
[1744813845179,32.03235965,126.81,126.79,0.05462786]
[1744813845773,32.03235965,126.81,126.79,7.94192786]
[1744813846182,32.03235965,126.81,126.8,7.887]
[1744813846379,0.05235965,126.81,126.79,0.05462786]
[1744813846882,31.98,126.87,126.79,32.03462786]
[1744813847083,31.98,126.87,126.79,31.98]
[1744813847280,31.98,126.92,126.83,48.99513471]
[1744813847482,31.98,126.92,126.84,31.98]
[1744813847681,7.8805,126.91,126.84,31.98]
[1744813847882,0.05154376,126.89,126.87,0.05657762]
[1744813849180,31.98,126.98,126.88,31.98]
[1744813849482,31.98,126.98,126.9,30.01041499]
[1744813849673,31.98,126.98,126.88,31.98]
[1744813849674,2.1648,127.01,126.93,7.8786]
[1744813849875,2.1648,127.01,126.92,30.01041499]
[1744813850079,39.855,127.0,126.92,64.14681499]
[1744813850284,0.05922673,126.98,126.96,30.01041499]
[1744813850584,39.8529,127.03,126.97,7.8765]
[1744813850778,39.8529,127.03,126.96,30.01041499]
[1744813850779,39.8529,127.03,126.96,30.06803109]
[1744813850977,31.98,127.03,126.92,426.14681499]
[1744813851177,48.77896446,127.0,126.92,362.0]
[1744813851379,48.77896446,127.02,126.87,80.75896446]
[1744813851380,48.77896446,126.98,126.87,80.75896446]
[1744813851580,48.77896446,126.98,126.87,82.97526446]
[1744813851782,0.05141191,126.94,126.91,0.05553832]
[1744813852784,0.05141191,126.94,126.91,7.93563832]
[1744813852986,15.7282,127.17,126.93,48.77896446]
[1744813853188,52.97286446,127.07,126.96,48.77896446]
[1744813853389,10.0514,127.06,126.96,48.77896446]
[1744813853587,2.18,127.06,126.96,48.77896446]
[1744813853883,48.77896446,127.08,126.96,82.01896446]
[1744813854189,6.3612,127.12,127.0,48.82912741]
[1744813854386,48.77896446,127.06,126.96,48.77896446]
[1744813854686,33.24,127.05,126.98,48.77896446]
[1744813854887,33.24,127.04,126.98,48.77896446]
[1744813855293,33.24,127.04,126.95,52.96576446]
[1744813855493,7.92465773,127.02,127.0,0.05390035]
[1744813855689,0.05125773,127.02,127.0,0.05390035]
[1744813856093,0.05125773,127.02,126.95,4.1868]
[1744813856296,48.83022219,127.02,126.91,48.77896446]
[1744813856599,48.77896446,127.0,126.9,7.8807]
[1744813856794,33.22,126.99,126.89,48.77896446]
[1744813857095,56.65496446,126.98,126.89,56.65986446]
[1744813857293,0.05102264,126.95,126.93,0.05455357]
[1744813857493,33.22,126.94,126.93,0.05455357]
[1744813858095,0.05102264,126.95,126.93,0.05455357]
[1744813858296,33.27102264,126.95,126.93,0.05455357]
[1744813858690,33.27102264,126.95,126.88,4.2595]
[1744813859096,48.77896446,126.94,126.85,2.0692]
[1744813859794,0.05366244,126.91,126.88,0.05877484]
[1744813859986,33.22,126.9,126.88,0.05877484]
[1744813860193,0.05366244,126.91,126.88,0.05877484]
[1744813860897,0.05366244,126.91,126.89,48.77896446]
[1744813861289,0.05366244,126.91,126.89,56.65986446]
[1744813861491,0.05366244,126.91,126.89,48.77896446]
[1744813861688,33.22,126.9,126.88,0.05877484]
[1744813862199,0.05366244,126.91,126.89,48.77896446]
[1744813862394,1.37153667,127.01,126.9,81.99896446]
[1744813862589,48.77896446,127.02,126.91,48.77896446]
[1744813862791,2.0703,127.0,126.91,48.77896446]
[1744813862993,50.84926446,127.0,126.91,48.77896446]
[1744813863404,50.84926446,127.0,126.91,7.8801]
[1744813863697,0.05945248,126.97,126.94,0.0573631]
[1744813863900,33.22,126.96,126.94,0.0573631]
[1744813864197,81.99896446,126.96,126.85,448.22846446]
[1744813864798,48.77896446,126.94,126.83,48.77896446]
[1744813864998,2.0976,126.93,126.83,48.77896446]
[1744813865189,649.39896446,126.92,126.81,53.04286446]
[1744813865492,48.77896446,126.88,126.79,26.62349671]
[1744813865698,33.22,126.87,126.79,26.62349671]
[1744813865898,7.8833,126.86,126.81,7.8863]
[1744813866297,33.22,126.87,126.81,7.8863]
[1744813866499,0.05809214,126.85,126.82,0.06014294]
[1744813866700,0.05809214,126.85,126.82,7.94594294]
[1744813867600,0.05809214,126.85,126.82,0.06014294]
[1744813867799,0.05809214,126.85,126.82,7.94574294]
[1744813868100,0.05809214,126.85,126.82,0.06014294]
[1744813868898,7.94199214,126.85,126.82,0.06014294]
[1744813869199,0.05809214,126.85,126.82,0.06014294]
[1744813873104,0.05809214,126.85,126.82,7.94554294]
[1744813873304,0.05809214,126.85,126.82,0.06014294]
[1744813874105,0.05809214,126.85,126.82,7.94554294]
[1744813874804,0.05809214,126.85,126.82,0.06014294]
[1744813875509,15.742,127.06,126.83,48.77896446]
[1744813875810,33.22,126.93,126.9,7.8804]
[1744813876011,33.22,126.93,126.87,48.77896446]
[1744813876511,41.0993,126.93,126.88,7.8817]
[1744813876712,0.0578723,126.91,126.89,0.05028688]
[1744813877006,7.8808,126.9,126.89,0.05028688]
[1744813877206,0.0578723,126.91,126.84,2.1169]
[1744813877712,7.8812,126.9,126.85,7.8839]
[1744813877912,33.22,126.89,126.85,7.8839]
[1744813878113,33.22,126.89,126.84,2.1169]
[1744813878318,0.0596682,126.88,126.87,7.8823]
[1744813878511,33.22,126.92,126.85,48.77896446]
[1744813878812,0.05739574,126.89,126.86,0.0544886]
[1744813879814,33.22,126.88,126.86,0.0544886]
[1744813880915,33.22,126.88,126.87,7.8827]
[1744813882214,0.05739574,126.89,126.86,0.0544886]
[1744813882617,0.05739574,126.89,126.86,7.9373886]
[1744813882815,0.05739574,126.89,126.86,0.0544886]
[1744813883722,0.05739574,126.89,126.86,7.9373886]
[1744813883915,0.05739574,126.89,126.86,0.0544886]
[1744813884910,0.05739574,126.89,126.86,7.9373886]
[1744813885114,0.05739574,126.89,126.86,0.0544886]
[1744813885313,0.05739574,126.89,126.87,7.8823]
[1744813885819,0.05739574,126.89,126.86,0.0544886]
[1744813886621,7.8827,126.87,126.86,0.0544886]
[1744813886822,0.05739574,126.89,126.86,0.0544886]
[1744813887319,7.8827,126.87,126.86,0.0544886]
[1744813887519,41.7027,126.87,126.86,0.0544886]
[1744813888921,33.82,126.87,126.81,35.62754474]
[1744813889810,7.8846,126.84,126.83,0.05190231]
[1744813893123,7.93427898,126.85,126.83,0.05190231]
[1744813893525,0.05007898,126.85,126.83,0.05190231]
[1744813894921,0.05007898,126.85,126.83,7.93700231]
[1744813895426,0.05007898,126.85,126.83,0.05190231]
[1744813896226,0.05007898,126.85,126.83,7.93670231]
[1744813896526,0.05007898,126.85,126.83,0.05190231]
[1744813896919,0.05007898,126.85,126.83,7.93680231]
[1744813897126,0.05007898,126.85,126.83,0.05190231]
[1744813897426,33.82,126.87,126.83,30.12585124]
[1744813897624,33.82,126.91,126.85,30.07394893]
[1744813897821,1.995,126.95,126.87,30.07394893]
[1744813898119,601.46,126.96,126.92,7.8794]
[1744813898623,0.05663824,126.95,126.93,0.05801417]
[1744813898824,33.82,126.99,126.93,30.1319631]
[1744813899117,41.6957,126.99,126.95,7.8773]
[1744813899318,33.82,127.02,126.94,50.76333155]
[1744813899522,7.8737,127.02,126.94,50.76333155]
[1744813899725,601.46,127.03,126.96,48.74093155]
[1744813900025,0.05894788,127.01,126.98,0.05552406]
[1744813900221,567.64,127.15,127.0,48.74093155]
[1744813900423,48.74093155,127.13,127.02,48.74093155]
[1744813900620,7.8694,127.09,127.02,48.74093155]
[1744813900820,7.8694,127.09,127.03,7.8723]
[1744813901123,7.8694,127.09,127.02,48.74093155]
[1744813901326,0.05442979,127.07,127.05,0.05759204]
[1744813902026,601.46,127.15,127.05,0.05759204]
[1744813902323,601.46,127.15,127.04,48.74093155]
[1744813902825,7.8663,127.14,127.06,48.74093155]
[1744813903024,33.82,127.15,127.09,7.92314609]
[1744813903226,7.8623,127.2,127.09,362.05414609]
[1744813903416,33.82,127.22,127.1,2.0054]
[1744813903621,33.82,127.22,127.15,48.74093155]
[1744813903823,35.36,127.25,127.15,48.74093155]
[1744813904023,2.001,127.31,127.17,48.74093155]
[1744813904220,0.06013941,127.21,127.2,48.74093155]
[1744813904417,37.4115,127.3,127.2,48.74093155]
[1744813904622,35.34,127.3,127.2,50.92763155]
[1744813904920,1.36779011,127.33,127.2,4.2102]
[1744813905117,1.36779011,127.33,127.2,52.95113155]
[1744813905323,43.26,127.38,127.23,48.74093155]
[1744813905521,0.05945347,127.28,127.25,0.05554835]
[1744813905727,1.44387192,127.36,127.25,48.74093155]
[1744813906030,7.8536,127.34,127.23,362.0]
[1744813906325,48.74093155,127.36,127.25,48.74093155]
[1744813906715,43.26,127.38,127.25,7.859]
[1744813906920,0.05391928,127.32,127.29,0.05507598]
[1744813907121,268.13641187,127.41,127.29,48.74093155]
[1744813907430,58.94,127.42,127.29,48.74093155]
[1744813907728,7.8529,127.36,127.28,48.74093155]
[1744813907927,107.68093155,127.36,127.24,48.74093155]
[1744813908222,7.856,127.3,127.29,0.05361077]
[1744813908422,107.68093155,127.3,127.19,48.74093155]
[1744813909018,48.74093155,127.28,127.2,2.0235]
[1744813909326,58.94,127.3,127.14,362.0]
[1744813909327,48.74093155,127.24,127.15,2.0294]
[1744813909523,58.94,127.23,127.15,2.0294]
[1744813909724,0.05938431,127.2,127.18,0.05037802]
[1744813909931,58.92,127.3,127.19,48.74093155]
[1744813910123,58.92,127.3,127.24,48.74093155]
[1744813910319,58.92,127.3,127.22,48.74093155]
[1744813910625,107.66093155,127.3,127.2,50.91283155]
[1744813910927,107.66093155,127.3,127.2,2.1719]
[1744813911124,0.0522205,127.26,127.24,0.05817063]
[1744813911425,60.6,127.25,127.16,50.79143155]
[1744813911819,60.6,127.25,127.16,2.0505]
[1744813912218,48.74093155,127.24,127.15,2.1719]
[1744813912429,0.05217934,127.22,127.19,0.05769782]
[1744813913328,7.91367934,127.22,127.19,0.05769782]
[1744813913627,0.05217934,127.22,127.19,0.05769782]
[1744813913823,0.05217934,127.22,127.2,48.74093155]
[1744813914030,60.6,127.27,127.2,48.74093155]
[1744813914329,60.6,127.27,127.2,50.80533155]
[1744813914526,7.8603,127.24,127.2,50.80533155]
[1744813914725,7.8603,127.24,127.2,2.0644]
[1744813915023,48.74093155,127.3,127.2,2.0644]
[1744813915024,2.0896,127.33,127.21,48.74093155]
[1744813915226,60.6,127.32,127.23,48.74093155]
[1744813915627,7.8588,127.26,127.23,48.74093155]
[1744813915926,60.6,127.32,127.21,48.74093155]
[1744813916322,0.05295238,127.28,127.25,0.05121271]
[1744813916526,60.58,127.27,127.25,0.05121271]
[1744813916726,60.58,127.27,127.2,2.0644]
[1744813917127,60.58,127.31,127.2,2.0644]
[1744813917321,60.58,127.31,127.23,48.74093155]
[1744813917526,48.74093155,127.3,127.2,2.0644]
[1744813917730,0.05013901,127.26,127.24,0.05975512]
[1744813918030,0.04974368,127.26,127.24,0.05975512]
[1744813918232,60.58,127.25,127.24,5.512e-05]
[1744813918630,68.4391,127.25,127.24,5.512e-05]
[1744813920436,46.05961789,127.25,127.24,5.512e-05]
[1744813921037,38.20051789,127.25,127.24,5.512e-05]
[1744813921241,0.04974368,127.26,127.24,5.512e-05]
[1744813921536,566.2,127.32,127.24,56.60098667]
[1744813921737,60.58,127.35,127.27,56.59863155]
[1744813921933,60.58,127.35,127.27,48.74093155]
[1744813922132,48.74093155,127.34,127.25,2.0415]
[1744813922432,48.74093155,127.3,127.23,2.2026]
[1744813922635,7.8598,127.24,127.17,4.1608]
[1744813922835,48.74093155,127.26,127.17,6.1772]
[1744813923239,48.74093155,127.24,127.17,6.1772]
[1744813923438,48.74093155,127.24,127.17,4.1608]
[1744813923634,48.79819471,127.22,127.19,0.05028522]
[1744813923837,60.56,127.21,127.13,48.74093155]
[1744813924033,62.6978,127.25,127.17,48.74093155]
[1744813924234,60.56,127.25,127.17,48.74093155]
[1744813924742,60.56,127.25,127.15,48.74093155]
[1744813924943,7.91371287,127.21,127.19,0.05505903]
[1744813925143,0.05151287,127.21,127.19,0.05505903]
[1744813926644,0.05151287,127.21,127.2,7.8622]
[1744813926841,566.16,127.26,127.19,48.79599058]
[1744813927145,60.58,127.29,127.21,48.74093155]
[1744813927342,60.58,127.29,127.22,2.064]
[1744813927740,7.858,127.27,127.22,2.064]
[1744813927942,60.58,127.29,127.22,2.064]
[1744813928139,0.05631869,127.26,127.23,0.05204488]
[1744813928545,48.74093155,127.25,127.15,416.96373155]
[1744813928746,60.56,127.24,127.15,416.96373155]
[1744813928948,60.56,127.24,127.17,48.74093155]
[1744813929149,60.56,127.24,127.19,48.74093155]